Cogmind - Beta 15 @@@ ROGUE MODE // 2025.10.07 @ 21:08:58 Player: Kotyk77 Result: Destroyed by D-53 Grenadier with Mini Grenade Launcher Performance ------------- Evolutions (0) 0 Regions Visited (2) 400 Robots Destroyed (27) 135 Value Destroyed (506) 506 Prototype IDs (3) 60 Alien Tech Used (0) 0 Bonus (0) 0 TOTAL SCORE: 1101 Bonus ------- None Cogmind --------- Core Integrity 0/250 Matter 237/300 Energy 19/250 System Corruption 1% Temperature Cool (6) Movement Rolling (200) Ox8 Location -10/Mines Parts ------- > --- POWER (1) -------- Ion Engine > --- PROPULSION (2) --- Wheel > --- UTILITY (2) ------ Huge Storage Unit > --- WEAPON (2) ------- Light Assault Rifle > --- INVENTORY (25) --- Ion Engine Light Ion Engine Aluminum Leg Aluminum Leg Wheel Improved Heat Sink Sensor Array Signal Interpreter Seismic Detector Propulsion Shielding Light Armor Plating Light Armor Plating Shield Generator Shield Generator Hacking Suite Light Assault Rifle EMP Blaster Grenade Launcher Rocket Launcher Rocket Launcher Maul Maul Peak State ------------ > --- POWER ------------ Ion Engine > --- PROPULSION ------- Wheel Wheel > --- UTILITY ---------- Huge Storage Unit Shield Generator > --- WEAPON ----------- Light Assault Rifle Maul > --- INVENTORY -------- Ion Engine Light Ion Engine Aluminum Leg Aluminum Leg Wheel Sensor Array Signal Interpreter Seismic Detector Propulsion Shielding Light Armor Plating Light Armor Plating Shield Generator Shield Generator Hacking Suite Light Assault Rifle EMP Blaster Grenade Launcher Rocket Launcher Rocket Launcher Rocket Launcher Maul [Rating: 12] Favorites ----------- Power Ion Engine Engine Ion Engine Propulsion Aluminum Leg Leg Aluminum Leg Wheel Wheel Utility Shield Generator Device Shield Generator Storage Small Storage Unit Weapon Light Assault Rifle Energy Gun Small Laser Ballistic Gun Light Assault Rifle Launcher Rocket Launcher Impact Weapon Maul Build | -11 -10 -10 ------- Run | Yrd Mat Min Slots Evolved . | . . . Power . | . . . Propulsion . | . . . Utility . | . . . Weapon . | . . . Parts Attached 29 | 7 19 3 Power 5 | 1 4 . Engine 5 | 1 4 . Core . | . . . Reactor . | . . . Propulsion 9 | 2 5 2 Treads . | . . . Leg 3 | . 3 . Wheel 6 | 2 2 2 Hover . | . . . Flight . | . . . Utility 7 | 2 5 . Device 3 | 1 2 . Storage 4 | 1 3 . Processor . | . . . Hackware . | . . . Protection . | . . . Artifact . | . . . Weapon 8 | 2 5 1 Energy Gun 3 | 2 1 . Energy Cannon . | . . . Ballistic Gun 3 | . 3 . Ballistic Cannon . | . . . Launcher 1 | . . 1 Special Weapon . | . . . Impact Weapon 1 | . 1 . Slashing Weapon . | . . . Piercing Weapon . | . . . Special Melee Weapon . | . . . Unidentified Prototypes . | . . . Parts Lost 11 | . 6 5 Power 1 | . 1 . Propulsion 5 | . 2 3 Utility 2 | . 1 1 Weapon 3 | . 2 1 Highest Loss Streak 5 | . 5 5 To Critical Strikes . | . . . Average Backups 11 | 2 10 21 Power 1 | . 1 2 Propulsion 2 | 1 2 3 Utility 3 | . 3 9 Weapon 3 | . 3 7 Tool/Special . | . . . Unused Backups 23 | . 6 17 Power 3 | . 1 2 Propulsion 1 | . . 1 Utility 11 | . 2 9 Weapon 8 | . 3 5 Tool/Special . | . . . Average Slot Usage (%) 99 | . 99 98 Engine 14 | . 14 14 Leg 14 | . 16 . Wheel 13 | . 11 27 Device 13 | . 13 13 Storage 14 | . 14 14 Energy Gun 4 | . 4 . Ballistic Gun 16 | . 16 14 Impact Weapon 6 | . 6 6 Peak Build Rating 12 | 7 11 12 Average Rating 9 | 5 9 11 On Entrance 6 | . 7 11 Naked Turns . | . . . Heaviest Build 92 | 11 91 92 Greatest Support 26 | 26 26 20 Greatest Overweight (x) 4 | 1 4 4 Average Overweight (x) 1 | . 1 4 Largest Inventory Capacity 25 | 8 25 25 Average Capacity 14 | 7 12 25 Most Carried 24 | 6 20 24 Average Carried 11 | 2 10 22 Final Capacity 25 | 8 25 25 Final Carried 22 | 6 20 22 Class Distribution -------------------- 63% | Mutant 36% | Scavenger-Mutant Dominant Class ---------------- Mutant | -10/Materials Scavenger-Mutant | -10/Mines Resources | -11 -10 -10 ----------- Run | Yrd Mat Min Matter Collected 643 | 235 343 65 Remotely . | . . . Salvage Created 678 | 51 497 130 Parts 51 | 5 35 11 Haulers Intercepted 1 | . 1 . Recyclers Shooed 1 | . . 1 Parts Field Recycled . | . . . Retrieved Matter . | . . . Parts Self-Destructed . | . . . Prevented . | . . . Kills | -11 -10 -10 ------- Run | Yrd Mat Min Combat Hostiles Destroyed 15 | . 13 2 Melee 1 | . 1 . Guns 13 | . 12 1 AOE 1 | . . 1 Classes Destroyed 9 | 1 5 3 Worker 1 | . . 1 Builder 2 | . . 2 Tunneler 3 | 2 . 1 Hauler 1 | . 1 . Recycler 1 | . . 1 Operator 2 | . 2 . Watcher 2 | . 2 . Swarmer 6 | . 6 . Grunt 9 | . 7 2 Best Kill Streak 6 | 2 4 6 Combat Bots Only 4 | . 4 2 Max Kills in Single Turn 2 | 1 1 2 Gunslinging . | . . . Exploded 1 | . . 1 Melee 1 | . 1 . Uniques/NPCs Destroyed . | . . . Combat | -11 -10 -10 -------- Run | Yrd Mat Min Hostile Shots Fired 99 | . 80 19 Missed 23 | . 19 4 Hits 76 | . 61 15 Projectile 76 | . 61 15 AOE 11 | . . 11 Critical Strikes 1 | . 1 . Damage Taken 1044 | . 641 403 Core 255 | . 148 107 Absorbed by Shields 166 | . 78 88 Core Remaining (%) 100 | 100 . . Volleys Fired 67 | 3 55 9 Largest 2 | 2 2 2 Hottest 80 | 80 80 53 Shots Fired 115 | 6 91 18 Gun 106 | 6 91 9 Cannon . | . . . Launcher 9 | . . 9 Special . | . . . Kinetic 52 | . 43 9 Thermal 54 | 6 48 . Explosive 9 | . . 9 Electromagnetic . | . . . Robot Hit Streak 9 | 5 9 5 Robot Miss Streak 3 | . 3 2 Penetration Max . | . . . Secondary Targets 1 | . 1 . Max Gunslinging Chain 1 | . 1 . Shots Hit Robots 84 | 5 69 10 Core Hits 53 | 2 28 23 Critical Kills 1 | . 1 . Critical Parts Destroyed 3 | . 3 . Critical Strikes 5 | . 5 . Burn 1 | . 1 . Smash 4 | . 4 . Melee Attacks 12 | . 12 . Impact 12 | . 12 . Slashing . | . . . Piercing . | . . . Sneak Attacks 2 | . 2 . Combat Hostiles . | . . . Follow-up Attacks . | . . . Damage Inflicted 1613 | 54 1025 534 Guns 752 | 54 647 51 Cannons . | . . . Explosions 483 | . . 483 Melee 364 | . 364 . Ramming 14 | . 14 . Kinetic 289 | . 238 51 Thermal 463 | 54 409 . Explosive 483 | . . 483 Electromagnetic . | . . . Impact 364 | . 364 . Slashing . | . . . Piercing . | . . . Highest Corruption 1 | . 1 1 Average Corruption 1 | . 1 1 Corruption Purged . | . . . Corruption Blocked . | . . . Effects 7 | . 4 3 Message Errors 1 | . 1 . Matter Fused 2 | . 1 1 Heat Flow Errors 1 | . . 1 Energy Discharges 2 | . 1 1 Alerts 1 | . 1 . Overload Shots . | . . . Overflow Damage 235 | . 232 3 Projectiles 10 | . 10 . Explosions 3 | . . 3 Melee 222 | . 222 . Knockbacks 2 | . 2 . Impact 1 | . 1 . Kinetic . | . . . Secondary 1 | . 1 . Self-Inflicted Damage 25 | . 6 19 Shots 1 | . . 1 Rammed 5 | . 5 . Targets Rammed 5 | . 5 . Kicked . | . . . Crushed . | . . . Highest Temperature 245 | 36 245 209 Average Temperature 95 | 17 114 46 Received Heat Transfer 313 | . 285 28 Effects 2 | . 2 . Energy Bleed 1 | . 1 . Interference 1 | . 1 . Siege Activations . | . . . Martial Activations . | . . . Shielding Activations . | . . . Robots Disrupted . | . . . Combat Hostiles . | . . . Robots Corrupted 2 | . 2 . Combat Hostiles . | . . . Parts Fried 4 | . 4 . Impact Corruptions 9 | . 9 . Robots Melted . | . . . Combat Hostiles . | . . . Parts Melted 1 | 1 . . Heat Transferred 1231 | 125 1106 . Parts Sabotaged . | . . . Parts Stolen . | . . . Parts Stripped . | . . . Power Chain Reactions . | . . . Alert | -11 -10 -10 ------- Run | Yrd Mat Min Maximum Alert Level . | . . . Low Security (%) 100 | 100 100 100 Level 1 . | . . . Level 2 . | . . . Level 3 . | . . . Level 4 . | . . . Level 5 . | . . . High Security . | . . . Max Security . | . . . Peak Influence 100 | 10 70 100 Initial 6 | . . 6 Average 17 | 1 16 32 Influence Increases 501 | 10 372 119 Destroy 0b10 Robot/C 300 | . 260 40 Destroy 0b10 Robot/NC 60 | 10 25 25 Destroy Leader 66 | . 56 10 Successful Hack 14 | . 14 . Disable Machine 15 | . 15 . Destroy Structure 46 | . 2 44 Influence Decreases 501 | 10 355 136 Entered New Map 11 | . . 11 Time Decay 371 | 10 305 56 Lost Part 79 | . 50 29 Lost Ally 40 | . . 40 Squads Dispatched 2 | . 2 . Investigation . | . . . Extermination . | . . . Reinforcement 2 | . 2 . Assault . | . . . Garrison . | . . . Intercept . | . . . Searches Triggered . | . . . Construction Impeded . | . . . Haulers Reinforced . | . . . Active Scanning Responses . | . . . Cargo Convoy Interrupts . | . . . Stealth | -11 -10 -10 --------- Run | Yrd Mat Min Distress Signals 3 | . 3 . Communications Jammed . | . . . Distress Signals . | . . . Times Spotted 25 | . 21 4 Peak Tracking Total 4 | . 4 2 Tactical Retreats . | . . . Traps | -11 -10 -10 ------- Run | Yrd Mat Min Traps Triggered 3 | . 3 . Indirectly . | . . . Trap Hack Attempts . | . . . Triggered . | . . . Disarmed . | . . . Reprogrammed . | . . . Reused . | . . . Traps Extracted . | . . . Installed . | . . . Triggered . | . . . Machines | -11 -10 -10 ---------- Run | Yrd Mat Min Machines Disabled 1 | . 1 . Max in Single Turn 1 | . 1 . Machines Repaired . | . . . Machines Dismantled . | . . . Machines Sabotaged . | . . . Overloaded Fab Kills . | . . . Hacking | -11 -10 -10 --------- Run | Yrd Mat Min Machines Accessed 6 | . 6 . Terminals 6 | . 6 . Fabricators . | . . . Repair Stations . | . . . Recycling Units . | . . . Scanalyzers . | . . . Garrison Access . | . . . Total Hacks 21 | . 21 . Successful 9 | . 9 . Failed 12 | . 12 . Catastrophic . | . . . Database Lockouts . | . . . Manual 17 | . 17 . Terminals 21 | . 21 . Fabricators . | . . . Repair Stations . | . . . Recycling Units . | . . . Scanalyzers . | . . . Garrison Access . | . . . Terminal Hacks 8 | . 8 . Robot Analysis 4 | . 4 . Prototype ID Bank 2 | . 2 . Terminal Index 1 | . 1 . Locate Traps 1 | . 1 . Fabricator Hacks . | . . . Repair Station Hacks . | . . . Recycling Unit Hacks . | . . . Scanalyzer . | . . . Garrison Access Hacks . | . . . Unauthorized Hacks 1 | . 1 . Terminals 1 | . 1 . Botnet 1 | . 1 . Fabricators . | . . . Repair Stations . | . . . Recycling Units . | . . . Scanalyzers . | . . . Garrison Access . | . . . Data Cores Recovered . | . . . Used . | . . . Hacking Detections 6 | . 6 . Full Trace Events 2 | . 2 . Feedback Events . | . . . Feedback Blocked . | . . . Robot Schematics Acquired . | . . . Robots Built . | . . . Authchips . | . . . Time . | . . . Total Robot Build Rating . | . . . Part Schematics Acquired . | . . . Parts Built . | . . . Authchips . | . . . Time . | . . . Total Part Build Rating . | . . . Parts Repaired . | . . . Time . | . . . Parts Recycled . | . . . Recycled Matter . | . . . Retrieved Matter . | . . . Retrieved Components . | . . . Parts Scanalyzed . | . . . Part Schematics Acquired . | . . . Parts Damaged . | . . . Bothacking | -11 -10 -10 ------------ Run | Yrd Mat Min Used RIF Installer . | . . . Robots Hacked . | . . . Non-combat . | . . . Combat . | . . . Robot Hacks Applied . | . . . Relay Couplers Released . | . . . Fabnet Peak Effective % . | . . . Robots Rewired . | . . . Allies Hacked . | . . . Hacks Repelled . | . . . Allies | -11 -10 -10 -------- Run | Yrd Mat Min Total Allies 2 | . . 2 Largest Group 2 | . . 2 Highest-Rated Group 43 | . . 43 Highest-Rated Ally 31 | . . 31 Total Orders . | . . . Ally Attacks 1 | . . 1 Total Damage 20 | . . 20 Kills . | . . . Allies Corrupted . | . . . Allies Melted . | . . . Intel | -11 -10 -10 ------- Run | Yrd Mat Min Active Infowar (turns) 415 | 7 408 . Seismic 415 | 7 408 . Robot Analysis Total 4 | . 4 . Derelict Logs Recovered . | . . . Drone Launches . | . . . Drone Recoveries . | . . . Exploration | -11 -10 -10 ------------- Run | Yrd Mat Min Turns Passed 1899 | 81 1604 214 Spaces Moved 1164 | 62 999 103 Core 4 | 4 . . Treads . | . . . Legs 582 | . 582 . Wheels 578 | 58 417 103 Hover . | . . . Flight . | . . . Fastest Speed 50 | 50 80 140 Average Speed 132 | 90 134 140 Slowest Speed 190 | 100 190 140 Overloaded Moves . | . . . Propulsion Burnouts . | . . . Robots Hopped . | . . . Potential Cave-ins . | . . . Cave-ins Triggered . | . . . Exploration Rate (%) 40 | 4 96 21 Regions Visited 2 Branch Regions 1 Pre-discovered Areas . | . . . Known Exits Taken . | . . . Unknown Exits Taken 2 | 1 1 . Scrap Searched 1 | . . 1 Spaces Dug 2 | . 2 . Terrain Destroyed 84 | . 2 82 Melee 2 | . 2 . Projectile . | . . . AOE 82 | . . 82 Terrain Rammed . | . . . Walls Destroyed . | . . . Machines Disabled . | . . . Actions | -11 -10 -10 --------- Run | Yrd Mat Min Total 1398 | 77 1164 157 Wait 63 | . 25 38 Move 1162 | 61 998 103 Hop . | . . . Pick Up 38 | 6 29 3 Fast Attach 8 | 7 1 . Attach 8 | . 6 2 Detach . | . . . Swap 18 | . 16 2 Drop 17 | . 17 . Fire 67 | 3 55 9 Melee 12 | . 12 . Ram 5 | . 5 . Kick . | . . . Crush . | . . . Escape Stasis . | . . . Rewire . | . . . Trap . | . . . Miscellaneous . | . . . Route ------- -11/Scrapyard -10/Materials (discovered 4 exits: [*Mat x3] / [*Min]) -10/Mines History --------- Turn | Location | Event 14 | -11/Scrapyard | Discovered new exit (range 15) 82 | -11/Scrapyard | Entered Materials 83 | -10/Materials | Met a group of wandering Federalists 332 | -10/Materials | Build established: Mutant 344 | -10/Materials | Lost 5 parts (1p2n2w) 525 | -10/Materials | Discovered new exit (range 15) 645 | -10/Materials | Discovered new exit (range 7) 794 | -10/Materials | Core integrity fell below 50% 1031 | -10/Materials | Discovered new exit (range 10) 1391 | -10/Materials | Discovered new exit (range 8) 1574 | -10/Materials | Build established: Scavenger-Mutant 1686 | -10/Materials | Entered Mines 1856 | -10/Mines | Assembled infested the area 1892 | -10/Mines | Core integrity fell below 20% 1900 | -10/Mines | Destroyed by D-53 Grenadier with Mini Grenade Launcher Last Messages --------------- 01856_ ALERT: Infestation in the mines, dispatching Demolisher response squad. 01858_ U-05 Engineer builds a Wall. 01858_ U-05 Engineer lays Concrete. 01863_ U-05 Engineer builds a Wall. 01866_ U-05 Engineer lays Concrete. 01868_ U-05 Engineer builds a Wall. 01868_ U-05 Engineer lays Concrete. 01871_ U-05 Engineer builds a Wall. 01872_ U-05 Engineer lays Concrete. 01873_ U-05 Engineer builds a Wall. 01875_ U-05 Engineer lays Concrete. 01885_ GS-8XY(g) destroyed. 01889_ Wheel destroyed. 01890_ T-07 Excavator destroyed. 01891_ Wheel destroyed. 01894_ The unstable cave ceiling collapses. 01898_ Shield Generator destroyed. 01899_ The unstable cave ceiling collapses. 01900_ Rocket Launcher destroyed. Map ----- +----------------------------------------------------+ | ????????????????????????????????# """ #????? | | ????????????????????????????????#### ##????? | | ???????????????????????????????????# ## ##?????? | | ???????????????????????????????????# #### #??????? | | ???????????????????????????????????# #### #??????? | | ???????????????????????????????????# %###????? | | ???????????????????????????????????######][ ##???? | | ???????????????????????????????????###### ##??? | | ???????????????????????????????????# #??? | | ???????????????????????????????????# | | ????????????????????????????######?# #### | | ???????????????????????????## ### ##??# ### | | ??????????????????????????## ## ##???# ##?? | | ??????????????????????????# # ##????###??? | | ??????????????????????????? # ##?????????? | | ??????????????????????????? ?## ###????????? | | ???????????????????????????? #?# # #########? | | ????????????????????????????# #?# r # # #? | | ??????????????????????????## ## # """ #? | | ??????????????????????#### # % # """ #? | | ?????????????????????## # ### """ #? | | ????????????????????## [ ! #? | | ???????????????????## d d # #? | | ???????????????????# ########? | | ???????????????????# #????????? | | ???????????????????# @ ######?????????? | | ????????????? #??????????????? | | ?????????? # # ###??????????????? | | ??????????? ?? ## ##??????????????????? | | ??????????????? ?? ##???????????????????? | | ????????????? ??? ####????????????????????? | | ???????????? ???? ##????????????????????????? | | ????????????????? # ??????????????????????????? | | ???????????????? ## ??????????????????????????? | | ??????????????? ?# ???????????????????????????? | | ?????????????? ??# ???????????????????????????? | | ?????????????? ??? ????????????????????????????? | | ????????????????????#????????????????????????????? | | ?????????????????????????????????????????????????? | | ?????????????????????????????????????????????????? | | ?????????????????????????????????????????????????? | | ?????????????????????????????????????????????????? | | ?????????????????????????????????????????????????? | | ?????????????????????????????????????????????????? | | ?????????????????????????????????????????????????? | | ?????????????????????????????????????????????????? | | ?????????????????????????????????????????????????? | | | | | | | +----------------------------------------------------+ Best States ------------- Heat Dissipation 25 Energy Generation 10 Energy Capacity 250 Matter Stores 300 Matter Capacity 300 Sight Range 16 Terrain Scan Density 10 Evasion (%) 55 Item Schematics ----------------- None Robot Schematics ------------------ None Fabricated ------------ Nothing Repaired ---------- Nothing Alien Tech Used ----------------- None Achievements -------------- None Challenges ------------ None Game ------ Seed CompositeAngularClaws Manual? 0 Play Time 00:21:13 Cumulative 76.8 hours Start 2025.10.03 @ 09:51:22 End 2025.10.07 @ 21:08:58 Sessions 2 Manual Loads 0 Difficulty Rogue Special Mode None Game No. 81 Rogue 81 Adventurer 0 Explorer 0 Win Type - Total 0 Types 0/0/0/0/0/0/0/0/0/0 Lore% 20 Gallery% 36 Achievement% 30 Wizard Run 0 Options --------- Layout 1 ASCII 0 Keyboard 1 Movement Numpad Keybinds 0 Fullscreen 1 Font 32/SmallcapsGlow Map View 77x35 Zoom Use 0% Tactical HUD 1 Map Filters NONE Filters NONE Steam 1 RUN: e6140494-3c84-4c4b-a91e-c1c126139437